fUST/lending_fUST_20240113
["ID","MTS","AMOUNT","RATE_DAILY","PERIOD"]
[311438548,1705106949641,-2035.5021214,0.00018021,2]
[311438549,1705106949661,-7946.17143927,0.00018021,2]
[311438550,1705106949680,-322.41839503,0.00018021,2]
[311438551,1705106949700,-23820.6984816,0.00018022,2]
[311438552,1705106949719,-1030.96840335,0.00018022,2]
[311438553,1705106949738,-178.50369366,0.00018022,2]
[311438554,1705106949758,-154.93802479,0.00018022,2]
[311438555,1705106949778,-160.73743715,0.00018022,2]
[311438556,1705106949798,-587.23935535,0.00018022,2]
[311438557,1705106949818,-154.93802479,0.00018022,3]
[311438558,1705106949837,-1251.04496716,0.00018023,2]
[311438559,1705106949857,-1189.42637605,0.00018023,2]
[311438560,1705106954116,-525.7882447,0.00018016,2]
[311438561,1705106954137,-466.82403981,0.00018016,2]
[311438562,1705106954157,-1737.77333853,0.00018016,2]
[311438563,1705106954177,-10506.50980465,0.00018016,2]
[311438564,1705106954198,-20868.24199837,0.00018016,2]
[311438565,1705106954217,-1240.29427994,0.00018017,2]
[311438566,1705106954237,-15196.93299784,0.00018017,2]
[311438567,1705106955161,-21703.77145193,0.00018017,2]
[311438568,1705106955182,-19649.81072896,0.00018023,2]
[311438569,1705106955203,-242.67449373,0.00018023,2]
[311438570,1705106955223,-19832.35999552,0.00018023,2]
[311438571,1705106955244,-154.93802479,0.00018024,2]
[311438572,1705106955265,-172.21707739,0.00018028,2]
[311438573,1705106955285,-155.01085076,0.0001813,2]
[311438574,1705106955305,-155.90031341,0.0001813,2]
[311438575,1705106955325,-1472.66522875,0.0001813,2]
[311438576,1705106955345,-686.53707421,0.0001813,2]
[311438577,1705106955365,-352.31059329,0.00018144,2]
[311438578,1705106955385,-800.18520258,0.00018251,2]
[311438579,1705106955554,-238.69141255,0.00018269,2]
[311438580,1705106955578,-155.51953678,0.00018269,2]
[311438581,1705106955600,-156.63290004,0.0001827,2]
[311438582,1705106955620,-166.81952113,0.0001827,2]
[311438583,1705106955641,-192.72964022,0.0001827,2]
[311438584,1705106955662,-284.64131656,0.0001827,2]
[311438585,1705106955682,-183.01231192,0.0001827,2]
[311438586,1705106955702,-213.62341382,0.0001827,2]
[311438587,1705106955722,-731.90675141,0.00018271,2]
[311438588,1705106955743,-633.49224014,0.00018271,2]
[311438589,1705106955763,-2939.03088288,0.00018273,2]
[311438590,1705106955782,-155.63517585,0.00018273,2]
[311438591,1705106955803,-5049.06617706,0.00018273,2]
[311438592,1705106955824,-207.31957888,0.00018273,2]
[311438593,1705106955845,-107288.01628966,0.00018275,2]
[311438594,1705106955865,-1579.25587195,0.00019,2]
[311438595,1705106955885,-165.271036,0.00019178,2]
[311438596,1705106955904,-301.97050514,0.00019409,2]
[311438597,1705106955925,-298.41078949,0.00019419,2]
[311438598,1705106955945,-232.60464348,0.00019419,2]
[311438599,1705106955964,-1112.22182837,0.000195,2]
[311438600,1705106955984,-200.0,0.00019826,2]
[311438601,1705106956004,-352.31059325,0.00019974,2]
[311438602,1705106956023,-1195.46446057,0.0002,2]
[311438604,1705106956044,-155.20930172,0.0002,2]
[311438605,1705106956066,-676.95397771,0.0002,2]
[311438606,1705106956085,-161.85703978,0.0002,2]
[311438607,1705106956105,-569.17611682,0.0002,2]
[311438608,1705106956125,-266.50001777,0.0002,2]
[311438609,1705106956144,-253.63683718,0.00020489,2]
[311438610,1705106956164,-155.36882909,0.00020489,2]
[311438611,1705106956185,-8852.25893545,0.00020709,2]
[311438612,1705106956205,-326.84593778,0.00021,2]
[311438613,1705106956224,-200.0,0.00021349,2]
[311438614,1705106956245,-352.31059325,0.00021804,2]
[311438615,1705106956265,-608.91191275,0.00021917,2]
[311438616,1705106956284,-604.40248181,0.00021917,2]
[311438617,1705106956305,-500.0,0.00021917,2]
[311438618,1705106956324,-500.0,0.00021917,2]
[311438619,1705106956346,-500.0,0.00021917,2]
[311438620,1705106956366,-500.0,0.00021917,2]
[311438621,1705106956386,-595.26091951,0.00021917,2]
[311438622,1705106956406,-504.76831012,0.00021917,2]
[311438623,1705106956427,-500.0,0.00021917,2]
[311438624,1705106956452,-500.0,0.00021917,2]
[311438625,1705106956474,-500.0,0.00021917,2]
[311438626,1705106956494,-500.0,0.00021917,2]
[311438627,1705106956513,-500.0,0.00021917,2]
[311438628,1705106956534,-609.52637741,0.00021917,2]
[311438629,1705106956554,-500.0,0.00021917,2]
[311438630,1705106956574,-500.0,0.00021917,2]
[311438631,1705106956595,-593.15713066,0.00021917,2]
[311438632,1705106956615,-500.0,0.00021917,2]
[311438633,1705106956635,-504.46218806,0.00021917,2]
[311438634,1705106956656,-500.0,0.00021917,2]
[311438635,1705106956676,-528.6586103,0.00021917,2]
[311438636,1705106956697,-500.0,0.00021917,2]
[311438637,1705106956717,-297.81780328,0.00021917,2]
[311438638,1705106956739,-1034.92,0.00021917,2]
[311438639,1705106956758,-500.0,0.00021917,2]
[311438640,1705106956780,-500.0,0.00021917,2]
[311438641,1705106956800,-500.0,0.00021917,2]
[311438642,1705106956820,-500.0,0.00021917,2]
[311438643,1705106956842,-500.0,0.00021917,2]
[311438644,1705106956863,-164.20255396,0.00021917,2]
[311438645,1705106956884,-500.0,0.00021917,2]
[311438646,1705106956905,-500.0,0.00021917,2]
[311438647,1705106956924,-258.9772263,0.00021918,2]
[311438648,1705106956945,-1983.67729733,0.00022,2]
[311438649,1705106956965,-295.80365632,0.00022,2]
[311438650,1705106956984,-425.12426258,0.00022,2]
[311438651,1705106957004,-500.0,0.00022191,2]
[311438652,1705106957026,-500.0,0.00022191,2]
[311438653,1705106957048,-500.0,0.00022191,2]
[311438654,1705106957069,-500.0,0.00022191,2]
[311438655,1705106957090,-500.0,0.00022191,2]
[311438656,1705106957110,-500.0,0.00022191,2]
[311438657,1705106957130,-500.0,0.00022191,2]
[311438658,1705106957151,-500.0,0.00022191,2]
[311438659,1705106957171,-1034.92,0.00022191,2]
[311438660,1705106957194,-500.0,0.00022191,2]
[311438661,1705106957216,-444.85661364,0.00022191,2]
[311438662,1705106957236,-500.0,0.00022191,2]
[311438663,1705106957256,-500.0,0.00022465,2]
[311438664,1705106957276,-500.0,0.00022465,2]
[311438665,1705106957296,-500.0,0.00022465,2]
[311438666,1705106957317,-500.0,0.00022465,2]
[311438667,1705106957338,-500.0,0.00022465,2]
[311438668,1705106957358,-500.0,0.00022465,2]
[311438669,1705106957379,-210.9685837,0.00022465,2]
[311438670,1705106957400,-516.43,0.00022465,2]
[311438671,1705106957422,-1034.92,0.00022465,2]
[311438672,1705106957446,-500.0,0.00022465,2]
[311438673,1705106957469,-500.0,0.00022465,2]
[311438674,1705106957490,-250.13,0.00022739,2]
[311438675,1705106957511,-500.0,0.00022739,2]
[311438676,1705106957532,-500.0,0.00022739,2]
[311438677,1705106957553,-500.0,0.00022739,2]
[311438678,1705106957574,-500.0,0.00022739,2]
[311438679,1705106957595,-1034.92,0.00022739,2]
[311438680,1705106957617,-500.0,0.00022739,2]
[311438681,1705106957638,-500.0,0.00022739,2]
[311438682,1705106957658,-500.0,0.00023013,2]
[311438683,1705106957679,-500.0,0.00023013,2]
[311438684,1705106957701,-500.0,0.00023013,2]
[311438685,1705106957721,-500.0,0.00023013,2]
[311438686,1705106957743,-1034.92,0.00023013,2]
[311438687,1705106957766,-500.0,0.00023013,2]
[311438688,1705106957788,-500.0,0.00023013,2]
[311438689,1705106957809,-500.0,0.00023287,2]
[311438690,1705106957829,-435.11495684,0.00023287,2]
[311438691,1705106957854,-587.59610004,0.00023287,2]
[311438692,1705106957876,-435.81,0.00023287,2]
[311438693,1705106957898,-1034.92,0.00023287,2]
[311438694,1705106957919,-500.0,0.00023287,2]
[311438695,1705106957950,-468.33,0.00023287,2]
[311438696,1705106957976,-500.0,0.00023561,2]
[311438697,1705106957999,-1034.92,0.00023561,2]
[311438698,1705106958021,-500.0,0.00023561,2]
[311438699,1705106958042,-352.31059325,0.00023633,2]
[311438700,1705106958062,-500.0,0.00023835,2]
[311438701,1705106958085,-1034.92,0.00023835,2]
[311438702,1705106958107,-500.0,0.00023835,2]
[311438703,1705106958258,-500.0,0.00024109,2]
[311438704,1705106958281,-1034.92,0.00024109,2]
[311438705,1705106958302,-432.69015036,0.00024109,2]
[311438706,1705106958364,-285.86450988,0.00018015,2]
[311438707,1705106958385,-861.16003993,0.00018022,2]
[311438708,1705106963109,-154.93802479,0.00018015,2]
[311438709,1705106963130,-309.64347504,0.00018021,2]
[311438710,1705106963149,-1285.6177895,0.00018021,2]
[311438711,1705106963169,-126.80981067,0.00018021,2]
[311438712,1705106963197,-648.47247247,0.00018021,2]
[311438713,1705106963217,-739.39968252,0.00018021,2]
[311438714,1705106963236,-42940.96540126,0.00018021,2]
[311438715,1705106964092,-2375.54866304,0.00018021,2]
[311438754,1705107032707,-246.15296593,0.00018017,2]
[311438757,1705107032717,-360.84666248,0.00018017,2]
[311438760,1705107032726,-162.81745454,0.00018017,2]
[311438763,1705107032735,-191.07662918,0.00018018,2]
[311438766,1705107032744,-36900.70444977,0.00018018,2]
[311438769,1705107032755,-1737.77333853,0.00018018,2]
[311438772,1705107032765,-2030.72904445,0.00018018,2]
[311438775,1705107032774,-166.68064149,0.00018019,2]
[311438778,1705107032783,-264.9672714,0.00018019,2]
[311438781,1705107032792,-20839.23710501,0.00018019,2]
[311438784,1705107032800,-964.33699681,0.0001802,2]
[311438786,1705107032809,-23820.6984816,0.0001802,2]
[311438788,1705107032818,-14435.01357999,0.00018021,2]
[311438789,1705107032827,-162.84977266,0.00018021,2]
[311438791,1705107032837,-271.92490865,0.00018021,2]
[311438792,1705107032847,-309.70282191,0.00018021,2]
[311438793,1705107032856,-15885.90268571,0.00018021,2]
[311438794,1705107032865,-40.2651146,0.00018022,2]
[311438795,1705107032874,-1579.25587195,0.00019,2]
[311438796,1705107032884,-500.0,0.00021917,2]
[311438797,1705107032893,-500.0,0.00021917,2]
[311438798,1705107032902,-500.0,0.00021917,2]
[311438799,1705107032911,-500.0,0.00022191,2]
[311438800,1705107032920,-500.0,0.00022191,2]
[311438801,1705107032930,-500.0,0.00022465,2]
[311438802,1705107032939,-500.0,0.00022739,2]
[311438803,1705107032948,-1574.86511778,0.00023011,2]
[311438804,1705107032957,-546.16749453,0.00023011,2]
[311438805,1705107032966,-7987.09073251,0.00023011,2]
[311438806,1705107032975,-67.30984964,0.00024109,2]
[311438807,1705107032984,-500.0,0.00024383,2]
[311438808,1705107032994,-1034.92,0.00024383,2]
[311438809,1705107033005,-576.22305399,0.00024383,2]
[311438810,1705107033014,-9141.71,0.0002439,3]
[311438811,1705107033023,-1822.38176649,0.000244,2]
[311438812,1705107033032,-10970.05,0.00024637,3]
[311438813,1705107033042,-7618.09,0.00024637,3]
[311438814,1705107033051,-13164.06,0.00024647,3]
[311438815,1705107033060,-500.0,0.00024657,2]
[311438816,1705107033069,-1034.92,0.00024657,2]
[311438817,1705107033078,-349.46,0.00024931,2]
[311438818,1705107033088,-1034.92,0.00024931,2]
[311438819,1705107033097,-223.89868289,0.00025015,2]
[311438820,1705107033106,-154.93802479,0.00025016,4]
[311438821,1705107033116,-1034.92,0.00025205,2]
[311438822,1705107033126,-352.31059325,0.00025463,2]
[311438823,1705107033136,-1034.92,0.00025479,2]
[311438824,1705107033145,-500.0,0.00025563,2]
[311438825,1705107033154,-500.0,0.00025563,2]
[311438826,1705107033163,-500.0,0.00025563,2]
[311438827,1705107033173,-500.0,0.00025563,2]
[311438828,1705107033182,-500.0,0.00025563,2]
[311438829,1705107033191,-500.0,0.00025563,2]
[311438830,1705107033201,-500.0,0.00025563,2]
[311438831,1705107033210,-555.15143661,0.00025563,2]
[311438832,1705107033220,-500.0,0.00025563,2]
[311438833,1705107033229,-500.0,0.00025563,2]
[311438834,1705107033239,-500.0,0.00025563,2]
[311438835,1705107033249,-500.0,0.00025563,2]
[311438836,1705107033258,-500.0,0.00025563,2]
[311438837,1705107033268,-506.52051017,0.00025563,2]
[311438838,1705107033277,-1034.92,0.00025753,2]
[311438839,1705107033287,-344.44482029,0.00025837,2]
[311438840,1705107033295,-623.74,0.00025837,2]
[311438841,1705107033304,-500.0,0.00025837,2]
[311438842,1705107033314,-500.0,0.00025837,2]
[311438843,1705107033323,-500.0,0.00025837,2]
[311438844,1705107033332,-500.0,0.00025837,2]
[311438845,1705107033341,-500.0,0.00025837,2]
[311438846,1705107033350,-1034.92,0.00026027,2]
[311438847,1705107033359,-500.0,0.00026111,2]
[311438848,1705107033368,-500.0,0.00026111,2]
[311438849,1705107033377,-1034.92,0.00026301,2]
[311438850,1705107033386,-500.0,0.00026385,2]
[311438851,1705107033396,-1034.92,0.00026575,2]
[311438852,1705107033405,-500.0,0.00026659,2]
[311438853,1705107033414,-1034.92,0.00026849,2]
[311438854,1705107033425,-500.0,0.00026933,2]
[311438855,1705107033434,-460.75992736,0.00027,2]
[311438856,1705107033453,-1034.92,0.00027123,2]
[311438857,1705107033466,-368.47994274,0.00027206,2]
[311438858,1705107033476,-500.0,0.00027207,2]
[311438859,1705107033486,-6321.54251973,0.000273,4]
[311438860,1705107033496,-333.18126266,0.00027395,2]
[311438861,1705107033515,-266.50001777,0.00027395,2]
[311438862,1705107033529,-285.86450988,0.00027396,2]
[311438863,1705107033541,-500.0,0.00027397,2]
[311438864,1705107033555,-311.79,0.00027397,2]
[311438865,1705107033567,-1034.92,0.00027397,2]
[311438866,1705107033581,-5000.0,0.00027397,2]
[311438867,1705107033592,-4917.8600325,0.000274,2]
[311438868,1705107033602,-500.0,0.00027481,2]
[311438869,1705107033613,-1034.92,0.00027671,2]
[311438870,1705107033625,-1327.94297257,0.0002769,2]
[311438871,1705107033638,-500.0,0.00027755,2]
[311438872,1705107033649,-1030.8004026,0.00027795,2]
[311438873,1705107033661,-222.0003485,0.00027795,2]
[311438874,1705107033673,-309.73670291,0.00027795,2]
[311438875,1705107033685,-228.35819787,0.00027795,2]
[311438876,1705107033697,-872.56977946,0.00027795,2]
[311438877,1705107033708,-525.07940313,0.00027795,2]
[311438878,1705107033719,-2143.13577228,0.00027795,2]
[311438879,1705107033731,-458.15484987,0.00027795,2]
[311438880,1705107033742,-1227.75434661,0.00027795,2]
[311438881,1705107033754,-10527.6412931,0.00027795,2]
[311438882,1705107033765,-7941.25220217,0.00027795,2]
[311438883,1705107033776,-254.48979557,0.00027795,2]
[311438884,1705107033787,-1949.16081287,0.00027795,2]
[311438885,1705107033797,-268.49218154,0.00027795,2]
[311438886,1705107033807,-17503.15967323,0.00027795,2]
[311438887,1705107033817,-9164.78048599,0.00027795,2]
[311438888,1705107033827,-1249.89441562,0.00027795,2]
[311438889,1705107033839,-242.35371653,0.00027795,2]
[311438890,1705107033850,-1195.46446057,0.00027795,2]
[311438891,1705107033861,-500.0,0.00027796,2]
[311438892,1705107033872,-500.0,0.00027796,2]
[311438893,1705107033883,-500.0,0.00027796,2]
[311438894,1705107033894,-500.0,0.00027796,2]
[311438895,1705107033905,-502.2899914,0.00027796,2]
[311438896,1705107033916,-227.76444057,0.00027796,2]
[311438897,1705107033927,-2689.80618649,0.00027797,2]
[311438898,1705107033944,-1114.74046268,0.00027797,2]
[311438932,1705107038712,-185.024086,0.00025563,2]
[311438933,1705107038723,-1549.9875357,0.00027797,2]
[311438935,1705107038733,-12574.37984319,0.00027797,3]
[311438937,1705107038744,-18501.93020845,0.00027797,2]
[311438939,1705107038755,-1034.92,0.00027945,2]
[311438941,1705107038766,-500.0,0.00028029,2]
[311438943,1705107038779,-500.0,0.0002807,2]
[311438946,1705107038790,-635.53581168,0.0002807,2]
[311438947,1705107038802,-174.640298,0.000282,2]
[311438948,1705107038811,-196.846622,0.000282,2]
[311438949,1705107038820,-371.62479,0.000282,2]
[311438950,1705107038829,-299.890713,0.000282,2]
[311438951,1705107038839,-195.664231,0.000282,2]
[311438952,1705107038852,-293.496347,0.000282,2]
[311438953,1705107038864,-165.372317,0.000282,2]
[311438954,1705107038875,-299.890714,0.000282,2]
[311438955,1705107038887,-152.326598,0.000282,2]
[311438956,1705107038898,-164.641066,0.000282,2]
[311438957,1705107038911,-1034.95144053,0.00028219,2]
[311438959,1705107038923,-500.0,0.00028303,2]
[311438961,1705107038935,-500.0,0.00028344,2]
[311438963,1705107038946,-196.846622,0.00028553,2]
[311438965,1705107038955,-371.62479,0.00028553,2]
[311438966,1705107038965,-299.890713,0.00028553,2]
[311438969,1705107038975,-299.890714,0.00028553,2]
[311438970,1705107038985,-152.326598,0.00028553,2]
[311438971,1705107038995,-523.19595928,0.00028577,2]
[311438972,1705107039006,-2000.0,0.000286,2]
[311438973,1705107039016,-2000.0,0.0002861,2]
[311438974,1705107039027,-2000.0,0.0002862,2]
[311438975,1705107039038,-2000.0,0.0002863,2]
[311438976,1705107039050,-3700.0,0.0002864,2]
[311438977,1705107039060,-165.372317,0.0002867,2]
[311438978,1705107039071,-152.64236015,0.00028848,2]
[311438979,1705107039081,-6025.27531555,0.000289,18]
[311438980,1705107039091,-195.664231,0.00028905,2]
[311438981,1705107039101,-196.846622,0.00028905,2]
[311438982,1705107039111,-371.62479,0.00028905,2]
[311438983,1705107039121,-299.890713,0.00028905,2]
[311438984,1705107039131,-299.890714,0.00028905,2]
[311438985,1705107039142,-152.326598,0.00028905,2]
[311438986,1705107039152,-2408.12387098,0.00029,2]
[311438987,1705107039164,-155.06823002,0.00029,2]
[311438988,1705107039175,-300.0,0.00029,14]
[311438989,1705107039186,-165.372317,0.0002914,2]
[311438990,1705107039196,-152.64236015,0.0002916,2]
[311438991,1705107039206,-171.07129759,0.00029237,2]
[311438992,1705107039217,-9090.5864977,0.00029237,2]
[311438993,1705107039227,-196.846622,0.00029258,2]
[311438994,1705107039237,-371.62479,0.00029258,2]
[311438995,1705107039248,-299.890713,0.00029258,2]
[311438996,1705107039259,-299.890714,0.00029258,2]
[311438997,1705107039269,-152.326598,0.00029258,2]
[311438998,1705107039279,-153.0,0.00029315,2]
[311438999,1705107039290,-153.0,0.00029315,2]
[311439000,1705107039301,-153.0,0.00029315,2]
[311439001,1705107039311,-153.0,0.00029315,2]
[311439002,1705107039322,-153.0,0.00029315,2]
[311439003,1705107039332,-153.0,0.00029315,2]
[311439004,1705107039342,-153.0,0.00029315,2]
[311439005,1705107039352,-153.0,0.00029315,2]
[311439006,1705107039363,-153.0,0.00029315,2]
[311439007,1705107039375,-153.0,0.00029315,2]
[311439008,1705107039386,-153.0,0.00029315,2]
[311439009,1705107039396,-153.0,0.00029315,2]
[311439010,1705107039407,-153.0,0.00029315,2]
[311439011,1705107039417,-153.0,0.00029315,2]
[311439012,1705107039551,-306.0,0.00029315,2]
[311439013,1705107039564,-5000.0,0.00029332,5]
[311439014,1705107039574,-195.664231,0.0002961,2]
[311439015,1705107039583,-165.372317,0.0002961,2]
[311439016,1705107039593,-196.846622,0.0002961,2]
[311439017,1705107039602,-371.62479,0.0002961,2]
[311439018,1705107039611,-299.890713,0.0002961,2]
[311439019,1705107039620,-299.890714,0.0002961,2]
[311439020,1705107039629,-152.326598,0.0002961,2]
[311439021,1705107039638,-162.0,0.000297,2]
[311439022,1705107039647,-201.901,0.000297,2]
[311439023,1705107039657,-243.06203949,0.0002976,4]
[311439024,1705107039666,-451.74832768,0.00029789,2]
[311439025,1705107039675,-500.0,0.00029789,2]
[311439026,1705107039685,-500.0,0.00029789,2]
[311439027,1705107039694,-500.0,0.00029789,2]
[311439028,1705107039704,-500.0,0.00029789,2]
[311439029,1705107039713,-500.0,0.00029789,2]
[311439030,1705107039722,-458.50637181,0.00029789,2]
[311439031,1705107039732,-156.70765642,0.00029789,2]
[311439032,1705107039742,-500.0,0.00029789,2]
[311439033,1705107039751,-500.0,0.00029789,2]
[311439034,1705107039761,-590.01503507,0.00029789,2]
[311439035,1705107039771,-14273.41220562,0.0002979,7]
[311439036,1705107039780,-507.04658453,0.0002979,3]
[311439037,1705107039789,-305.10874727,0.0002979,2]
[311439038,1705107039798,-261.04615334,0.0002979,2]
[311439039,1705107039808,-619.44144137,0.0002979,2]
[311439040,1705107039817,-10280.02525619,0.0002979,2]
[311439041,1705107039826,-155.29508163,0.0002979,2]
[311439042,1705107039835,-406.36361089,0.0002979,2]
[311439043,1705107039845,-459.97137997,0.0002979,2]
[311439044,1705107039854,-214.36881137,0.0002979,2]
[311439045,1705107039863,-450.41159025,0.0002979,2]
[311439046,1705107039873,-200.0,0.000298,4]
[311439047,1705107039884,-1000.0,0.00029812,7]
[311439048,1705107039893,-155.0,0.000299,2]
[311439049,1705107039902,-469.64064105,0.00029996,2]
[311439050,1705107039912,-185.32504888,0.00029997,2]
[311439051,1705107039921,-252.40625729,0.00029997,2]
[311439052,1705107039930,-155.01550155,0.00029998,2]
[311439053,1705107039940,-174.8658683,0.00029998,2]
[311439054,1705107039951,-155.01085076,0.00029998,2]
[311439055,1705107039960,-860.80550823,0.00029998,2]
[311439056,1705107039970,-322.83363774,0.00029998,2]
[311439057,1705107039979,-155.01085076,0.00029998,2]
[311439058,1705107039988,-155.01085076,0.00029998,2]
[311439059,1705107039998,-250.04871776,0.00029998,2]
[311439060,1705107040008,-13692.10606787,0.00029998,2]
[311439061,1705107040018,-155.01085076,0.00029998,2]
[311439062,1705107040027,-1053.31742641,0.00029998,2]
[311439063,1705107040037,-261.7761853,0.00029998,2]
[311439064,1705107040046,-254.58486474,0.00029998,2]
[311439065,1705107040055,-155.04445476,0.00029998,2]
[311439066,1705107040064,-309.73667516,0.00029998,2]
[311439067,1705107040074,-174.52045975,0.00029998,2]
[311439068,1705107040083,-3737.95560178,0.00029998,2]
[311439069,1705107040093,-2708.4877235,0.00029998,2]
[311439070,1705107040102,-266.35525098,0.00029998,2]
[311439071,1705107040111,-260.59423718,0.00029998,2]
[311439072,1705107040120,-215.35247267,0.00029998,2]
[311439073,1705107040130,-155.08995217,0.00029998,2]
[311439074,1705107040139,-1434.632406,0.00029999,2]
[311439075,1705107040148,-1434.632406,0.00029999,2]
[311439076,1705107040158,-3001.46521398,0.00029999,2]
[311439077,1705107040167,-440.43668422,0.00029999,2]
[311439078,1705107040176,-500.0,0.00029999,2]
[311439079,1705107040186,-402.03869402,0.00029999,2]
[311439080,1705107040196,-500.0,0.00029999,2]
[311439081,1705107040206,-500.0,0.00029999,2]
[311439082,1705107040215,-593.36501269,0.00029999,2]
[311439083,1705107040225,-500.0,0.00029999,2]
[311439084,1705107040235,-500.0,0.00029999,2]
[311439085,1705107040245,-500.0,0.00029999,2]
[311439086,1705107040255,-500.0,0.00029999,2]
[311439087,1705107040265,-500.0,0.00029999,2]
[311439088,1705107040274,-500.0,0.00029999,2]
[311439089,1705107040283,-500.0,0.00029999,2]
[311439090,1705107040292,-500.0,0.00029999,2]
[311439091,1705107040302,-295.74199354,0.00029999,2]
[311439092,1705107040311,-500.0,0.00029999,2]
[311439093,1705107040321,-500.0,0.00029999,2]
[311439094,1705107040330,-500.0,0.00029999,2]
[311439095,1705107040340,-500.0,0.00029999,2]
[311439096,1705107040350,-500.0,0.00029999,2]
[311439097,1705107040360,-500.0,0.00029999,2]
[311439098,1705107040369,-500.0,0.00029999,2]
[311439099,1705107040379,-500.0,0.00029999,2]
[311439100,1705107040388,-500.0,0.00029999,2]
[311439101,1705107040398,-500.0,0.00029999,2]
[311439102,1705107040407,-500.0,0.00029999,2]
[311439103,1705107040416,-500.0,0.00029999,2]
[311439104,1705107040426,-500.0,0.00029999,2]
[311439105,1705107040435,-500.0,0.00029999,2]
[311439106,1705107040444,-500.0,0.00029999,2]
[311439107,1705107040454,-500.0,0.00029999,2]
[311439108,1705107040466,-397.65840412,0.00029999,2]
[311439109,1705107040476,-500.0,0.00029999,2]
[311439110,1705107040485,-500.0,0.00029999,2]
[311439111,1705107040494,-500.0,0.00029999,2]
[311439112,1705107040506,-500.0,0.00029999,2]
[311439113,1705107040515,-500.0,0.00029999,2]
[311439114,1705107040525,-500.0,0.00029999,2]
[311439115,1705107040534,-500.0,0.00029999,2]
[311439116,1705107040546,-500.0,0.00029999,2]
[311439117,1705107040556,-577.81286662,0.00029999,2]
[311439118,1705107040566,-500.0,0.00029999,2]
[311439119,1705107040575,-500.0,0.00029999,2]
[311439120,1705107040584,-500.0,0.00029999,2]
[311439121,1705107040593,-500.0,0.00029999,2]
[311439122,1705107040602,-502.11934105,0.00029999,2]
[311439123,1705107040611,-2062.51925124,0.00029999,2]
[311439124,1705107040620,-176.17467368,0.00029999,2]
[311439125,1705107040630,-500.0,0.00029999,2]
[311439126,1705107040639,-2062.51925124,0.00029999,2]
[311439127,1705107040648,-500.0,0.00029999,2]
[311439128,1705107040657,-2062.51925124,0.00029999,2]
[311439129,1705107040667,-500.0,0.00029999,2]
[311439130,1705107040677,-2062.51925124,0.00029999,2]
[311439131,1705107040686,-500.0,0.00029999,2]
[311439132,1705107040695,-2062.51925124,0.00029999,2]
[311439133,1705107040704,-500.0,0.00029999,2]
[311439134,1705107040713,-2062.51925124,0.00029999,2]
[311439135,1705107040722,-2062.51925124,0.00029999,2]
[311439137,1705107040731,-500.0,0.00029999,2]
[311439138,1705107040740,-2062.51925124,0.00029999,2]
[311439139,1705107040749,-500.0,0.00029999,2]
[311439140,1705107040760,-2062.51925124,0.00029999,2]
[311439141,1705107040769,-2062.51925124,0.00029999,2]
[311439142,1705107040778,-2062.51925124,0.00029999,2]
[311439144,1705107040787,-500.0,0.00029999,2]
[311439145,1705107040796,-2062.51925124,0.00029999,2]
[311439147,1705107040806,-500.0,0.00029999,2]
[311439148,1705107040816,-500.0,0.00029999,2]
[311439149,1705107040825,-500.0,0.00029999,2]
[311439150,1705107040834,-2062.51925124,0.00029999,2]
[311439151,1705107040844,-500.0,0.00029999,2]
[311439153,1705107040853,-500.0,0.00029999,2]
[311439155,1705107040862,-500.0,0.00029999,2]
[311439156,1705107040871,-500.0,0.00029999,2]
[311439158,1705107040880,-500.0,0.00029999,2]
[311439160,1705107040889,-2062.51925124,0.00029999,2]
[311439161,1705107040898,-2062.51925124,0.00029999,2]
[311439162,1705107040908,-500.0,0.00029999,2]